[Event "Early-Titled-Tuesday-Blitz-September-05-2023"]
[Site "Chess.com"]
[Date "2023.09.05"]
[Round "4"]
[White "LeoWin2012"]
[Black "Flaccidmoves"]
[Result "0-1"]
[WhiteElo "2228"]
[BlackElo "2473"]
[TimeControl "180+1"]
[EndTime "8:34:47 PDT"]
[Termination "Flaccidmoves won by resignation"]

1. e4 {[%clk 0:03:00.9]} 1... Nf6 {[%clk 0:02:59.8]} 2. e5 {[%clk 0:03:00.8]}
2... Nd5 {[%clk 0:03:00.3]} 3. d4 {[%clk 0:03:00.2]} 3... d6 {[%clk 0:03:00.8]}
4. c4 {[%clk 0:03:00.2]} 4... Nb6 {[%clk 0:03:00.5]} 5. f4 {[%clk 0:03:00.6]}
5... dxe5 {[%clk 0:03:00.9]} 6. fxe5 {[%clk 0:03:00.4]} 6... Bf5 {[%clk
0:03:00.8]} 7. Nc3 {[%clk 0:03:00.3]} 7... e6 {[%clk 0:03:00.8]} 8. Bd3 {[%clk
0:03:00.3]} 8... Qxd4 {[%clk 0:02:46.4]} 9. Bxf5 {[%clk 0:02:54.1]} 9... Qxd1+
{[%clk 0:02:46.2]} 10. Kxd1 {[%clk 0:02:51.4]} 10... exf5 {[%clk 0:02:46.6]} 11.
b3 {[%clk 0:02:51.4]} 11... Nc6 {[%clk 0:02:45.9]} 12. Nf3 {[%clk 0:02:51.2]}
12... O-O-O+ {[%clk 0:02:40.4]} 13. Ke2 {[%clk 0:02:50.4]} 13... Bb4 {[%clk
0:02:35.2]} 14. Bd2 {[%clk 0:02:44.4]} 14... Rhe8 {[%clk 0:02:34]} 15. Nb5
{[%clk 0:02:39]} 15... Bxd2 {[%clk 0:02:28.3]} 16. Nxd2 {[%clk 0:02:38.7]} 16...
Rxe5+ {[%clk 0:02:27.8]} 17. Kd1 {[%clk 0:02:35.3]} 17... a6 {[%clk 0:02:11.6]}
18. Nc3 {[%clk 0:02:32.6]} 18... Nd4 {[%clk 0:02:07.5]} 19. Rc1 {[%clk
0:02:27.9]} 19... Re7 {[%clk 0:02:04.4]} 20. Re1 {[%clk 0:02:26.2]} 20... Red7
{[%clk 0:01:59.8]} 21. Re3 {[%clk 0:02:13.5]} 21... f4 {[%clk 0:01:52.8]} 22.
Rh3 {[%clk 0:02:12.9]} 22... Nf5 {[%clk 0:01:48.6]} 23. Ne4 {[%clk 0:02:12.8]}
23... Ne3+ {[%clk 0:01:46.5]} 24. Ke2 {[%clk 0:02:12.7]} 24... f5 {[%clk
0:01:46.8]} 25. Rxh7 {[%clk 0:02:07.2]} 25... fxe4 {[%clk 0:01:45.9]} 26. Nxe4
{[%clk 0:02:08.1]} 26... Nf5 {[%clk 0:01:34.2]} 27. Kf3 {[%clk 0:02:05.1]} 27...
Nd4+ {[%clk 0:01:31.5]} 28. Kf2 {[%clk 0:02:01]} 28... Re8 {[%clk 0:01:28.1]}
29. Nc5 {[%clk 0:01:57.7]} 29... Rde7 {[%clk 0:01:25.6]} 30. Nd3 {[%clk
0:01:55.2]} 30... Re2+ {[%clk 0:01:24.1]} 31. Kf1 {[%clk 0:01:55.5]} 31... Rd2
{[%clk 0:01:22]} 32. Nxf4 {[%clk 0:01:54.5]} 32... Rf8 {[%clk 0:01:21.9]} 33. g3
{[%clk 0:01:53.8]} 33... g5 {[%clk 0:01:21.5]} 34. Rh8 {[%clk 0:01:44.9]} 34...
Rxh8 {[%clk 0:01:19.7]} 0-1

[Event "Early-Titled-Tuesday-Blitz-September-05-2023"]
[Site "Chess.com"]
[Date "2023.09.05"]
[Round "4"]
[White "GAusal"]
[Black "WindWhistler11"]
[Result "0-1"]
[WhiteElo "2283"]
[BlackElo "2486"]
[TimeControl "180+1"]
[EndTime "8:35:00 PDT"]
[Termination "WindWhistler11 won by resignation"]

1. d4 {[%clk 0:03:00.9]} 1... f5 {[%clk 0:02:54.8]} 2. g3 {[%clk 0:03:00.2]}
2... Nf6 {[%clk 0:02:55.2]} 3. Bg2 {[%clk 0:03:00.4]} 3... g6 {[%clk 0:02:55.5]}
4. Nh3 {[%clk 0:03:00.3]} 4... Bg7 {[%clk 0:02:56.2]} 5. O-O {[%clk 0:03:00.3]}
5... O-O {[%clk 0:02:56.9]} 6. c4 {[%clk 0:02:59.3]} 6... d6 {[%clk 0:02:56.6]}
7. Nc3 {[%clk 0:02:59.3]} 7... Nc6 {[%clk 0:02:56.7]} 8. d5 {[%clk 0:02:55.8]}
8... Ne5 {[%clk 0:02:53.3]} 9. Qb3 {[%clk 0:02:51.8]} 9... Kh8 {[%clk
0:02:38.3]} 10. f4 {[%clk 0:02:51.2]} 10... Neg4 {[%clk 0:02:34.3]} 11. e4
{[%clk 0:02:47]} 11... e5 {[%clk 0:02:23.4]} 12. dxe6 {[%clk 0:02:43]} 12...
Bxe6 {[%clk 0:02:22.6]} 13. Ng5 {[%clk 0:02:30.2]} 13... Bg8 {[%clk 0:02:19.6]}
14. exf5 {[%clk 0:02:27.9]} 14... gxf5 {[%clk 0:02:11.6]} 15. Nd5 {[%clk
0:02:22.2]} 15... Nxd5 {[%clk 0:02:06.1]} 16. Bxd5 {[%clk 0:02:18.7]} 16... Bd4+
{[%clk 0:02:03]} 17. Kg2 {[%clk 0:02:15.9]} 17... Re8 {[%clk 0:01:44.4]} 18. Qd1
{[%clk 0:01:51.2]} 18... c5 {[%clk 0:01:25.7]} 19. Bd2 {[%clk 0:01:47.8]} 19...
Qf6 {[%clk 0:00:54.7]} 20. Bc3 {[%clk 0:01:43.4]} 20... Ne3+ {[%clk 0:00:53.9]}
21. Kh3 {[%clk 0:01:39.6]} 21... Qh6+ {[%clk 0:00:52.5]} 0-1

[Event "Early-Titled-Tuesday-Blitz-September-05-2023"]
[Site "Chess.com"]
[Date "2023.09.05"]
[Round "4"]
[White "Kapitan_Bayan"]
[Black "tk22h"]
[Result "1-0"]
[WhiteElo "2211"]
[BlackElo "2393"]
[TimeControl "180+1"]
[EndTime "8:35:11 PDT"]
[Termination "Kapitan_Bayan won by resignation"]

1. e4 {[%clk 0:03:00.9]} 1... e5 {[%clk 0:02:59.3]} 2. Nf3 {[%clk 0:03:00.4]}
2... Nc6 {[%clk 0:02:59.4]} 3. Bc4 {[%clk 0:03:00]} 3... Nf6 {[%clk 0:02:58]} 4.
d3 {[%clk 0:02:59.8]} 4... Be7 {[%clk 0:02:57.6]} 5. O-O {[%clk 0:02:57.8]} 5...
O-O {[%clk 0:02:57.1]} 6. Nc3 {[%clk 0:02:57.3]} 6... d6 {[%clk 0:02:56.2]} 7.
Re1 {[%clk 0:02:56.3]} 7... Na5 {[%clk 0:02:55.6]} 8. h3 {[%clk 0:02:38.7]} 8...
Nxc4 {[%clk 0:02:52.4]} 9. dxc4 {[%clk 0:02:39.6]} 9... Be6 {[%clk 0:02:52.1]}
10. b3 {[%clk 0:02:39.3]} 10... h6 {[%clk 0:02:52.3]} 11. Nd5 {[%clk 0:02:33]}
11... Re8 {[%clk 0:02:45.9]} 12. Bb2 {[%clk 0:02:32.1]} 12... Bf8 {[%clk
0:02:45.1]} 13. Qd3 {[%clk 0:02:28]} 13... Nh5 {[%clk 0:02:43.3]} 14. Rad1
{[%clk 0:02:21.8]} 14... c6 {[%clk 0:02:39.4]} 15. Ne3 {[%clk 0:02:18.6]} 15...
Nf4 {[%clk 0:02:39.2]} 16. Qd2 {[%clk 0:02:12.7]} 16... Qf6 {[%clk 0:02:39]} 17.
Ng4 {[%clk 0:02:00.3]} 17... Nxh3+ {[%clk 0:02:36.4]} 18. gxh3 {[%clk
0:01:54.5]} 18... Qxf3 {[%clk 0:02:36.1]} 19. Re3 {[%clk 0:01:49.2]} 19... Qf4
{[%clk 0:02:34.2]} 20. Qe2 {[%clk 0:01:45.7]} 20... Bxg4 {[%clk 0:02:33.7]} 21.
hxg4 {[%clk 0:01:42.1]} 21... Be7 {[%clk 0:02:30.5]} 22. Bc1 {[%clk 0:01:30.7]}
22... Qf6 {[%clk 0:02:16.3]} 23. Rf3 {[%clk 0:01:24.1]} 23... Qg6 {[%clk
0:02:16.2]} 24. Rf5 {[%clk 0:01:22.6]} 24... Rad8 {[%clk 0:02:15]} 25. Qf3
{[%clk 0:01:20.3]} 25... Bg5 {[%clk 0:02:14.4]} 26. Bxg5 {[%clk 0:01:18.1]}
26... hxg5 {[%clk 0:02:14.5]} 27. Kg2 {[%clk 0:01:15.3]} 27... f6 {[%clk
0:02:14.4]} 28. Rh1 {[%clk 0:00:49.4]} 28... Kf7 {[%clk 0:02:14]} 29. Rh5 {[%clk
0:00:45.5]} 29... Rh8 {[%clk 0:02:13.6]} 30. Rfxg5 {[%clk 0:00:40]} 1-0

[Event "Early-Titled-Tuesday-Blitz-September-05-2023"]
[Site "Chess.com"]
[Date "2023.09.05"]
[Round "4"]
[White "UB_TheQueen"]
[Black "Emp3rador"]
[Result "0-1"]
[WhiteElo "2081"]
[BlackElo "2469"]
[TimeControl "180+1"]
[EndTime "8:35:17 PDT"]
[Termination "Emp3rador won by resignation"]

1. e4 {[%clk 0:02:56.2]} 1... e6 {[%clk 0:03:00.5]} 2. d4 {[%clk 0:02:52.6]}
2... d5 {[%clk 0:03:01]} 3. Nc3 {[%clk 0:02:51.4]} 3... dxe4 {[%clk 0:03:01.9]}
4. Nxe4 {[%clk 0:02:50.6]} 4... Nd7 {[%clk 0:03:02.8]} 5. Nf3 {[%clk 0:02:49.3]}
5... Ngf6 {[%clk 0:03:03.7]} 6. Nxf6+ {[%clk 0:02:48.7]} 6... Nxf6 {[%clk
0:03:04.6]} 7. Bd3 {[%clk 0:02:47.6]} 7... b6 {[%clk 0:03:04.7]} 8. Bg5 {[%clk
0:02:45.9]} 8... Bb7 {[%clk 0:03:03.9]} 9. Qe2 {[%clk 0:02:46.3]} 9... Be7
{[%clk 0:03:00.5]} 10. O-O-O {[%clk 0:02:43.9]} 10... O-O {[%clk 0:03:00.1]} 11.
Ne5 {[%clk 0:02:40.7]} 11... a5 {[%clk 0:02:53.6]} 12. f3 {[%clk 0:02:39.9]}
12... a4 {[%clk 0:02:53.9]} 13. a3 {[%clk 0:02:37]} 13... Nd5 {[%clk 0:02:05.2]}
14. Bd2 {[%clk 0:02:23.8]} 14... Bg5 {[%clk 0:01:51.9]} 15. h4 {[%clk
0:02:11.2]} 15... Nf4 {[%clk 0:01:37.8]} 16. Qf1 {[%clk 0:01:58.5]} 16... Nxd3+
{[%clk 0:01:27.3]} 17. Qxd3 {[%clk 0:01:58.2]} 17... Bxd2+ {[%clk 0:01:27.1]}
18. Rxd2 {[%clk 0:01:58.9]} 18... Qd5 {[%clk 0:01:19.4]} 19. h5 {[%clk
0:01:48.4]} 19... h6 {[%clk 0:01:18.4]} 20. g4 {[%clk 0:01:46]} 20... c5 {[%clk
0:01:14.8]} 21. Qe3 {[%clk 0:01:19.1]} 21... Qa2 {[%clk 0:01:09.6]} 22. Rg2
{[%clk 0:01:12.5]} 22... Qa1+ {[%clk 0:01:07.4]} 23. Kd2 {[%clk 0:01:11.6]}
23... Qxh1 {[%clk 0:01:08.3]} 24. g5 {[%clk 0:01:11.5]} 24... Qxg2+ {[%clk
0:01:07.2]} 0-1

[Event "Early-Titled-Tuesday-Blitz-September-05-2023"]
[Site "Chess.com"]
[Date "2023.09.05"]
[Round "4"]
[White "chito89"]
[Black "Russian_berezka"]
[Result "1-0"]
[WhiteElo "2805"]
[BlackElo "2554"]
[TimeControl "180+1"]
[EndTime "8:35:22 PDT"]
[Termination "chito89 won by resignation"]

1. e4 {[%clk 0:03:00.9]} 1... e5 {[%clk 0:02:59.1]} 2. Bc4 {[%clk 0:02:59.4]}
2... Nf6 {[%clk 0:02:56.7]} 3. d3 {[%clk 0:02:59.4]} 3... c6 {[%clk 0:02:54]} 4.
Nf3 {[%clk 0:02:59.5]} 4... d5 {[%clk 0:02:53.4]} 5. Bb3 {[%clk 0:02:59.8]} 5...
Bb4+ {[%clk 0:02:53.5]} 6. Bd2 {[%clk 0:02:58.9]} 6... Bd6 {[%clk 0:02:44]} 7.
Nc3 {[%clk 0:02:55.2]} 7... d4 {[%clk 0:02:19.8]} 8. Ne2 {[%clk 0:02:53.1]} 8...
a5 {[%clk 0:02:14.7]} 9. a3 {[%clk 0:02:52.4]} 9... Na6 {[%clk 0:02:08.3]} 10.
Ng3 {[%clk 0:02:50.3]} 10... Nc5 {[%clk 0:02:08.3]} 11. Ba2 {[%clk 0:02:50.8]}
11... a4 {[%clk 0:01:59.8]} 12. O-O {[%clk 0:02:44.1]} 12... O-O {[%clk
0:01:58.7]} 13. h3 {[%clk 0:02:34.9]} 13... Be6 {[%clk 0:01:56.3]} 14. Bg5
{[%clk 0:02:19.9]} 14... h6 {[%clk 0:01:49.8]} 15. Bd2 {[%clk 0:02:11.3]} 15...
Qd7 {[%clk 0:01:19.3]} 16. Nh4 {[%clk 0:02:09.4]} 16... Bxa2 {[%clk 0:01:13.1]}
17. Rxa2 {[%clk 0:02:10.3]} 17... Qe6 {[%clk 0:01:12.7]} 18. Ra1 {[%clk
0:02:10.2]} 18... Rfd8 {[%clk 0:01:06.7]} 19. Nhf5 {[%clk 0:02:03.3]} 19... Bf8
{[%clk 0:01:07.3]} 20. f4 {[%clk 0:02:01.4]} 20... Nfd7 {[%clk 0:01:06.1]} 21.
Qf3 {[%clk 0:01:49.7]} 21... g6 {[%clk 0:00:53.3]} 22. Nh4 {[%clk 0:01:48.4]}
22... exf4 {[%clk 0:00:46.9]} 23. Bxf4 {[%clk 0:01:49.3]} 23... Ne5 {[%clk
0:00:33.7]} 24. Bxe5 {[%clk 0:01:48.8]} 24... Be7 {[%clk 0:00:29.5]} 25. Bf6
{[%clk 0:01:46.6]} 25... Bxf6 {[%clk 0:00:29]} 26. Qxf6 {[%clk 0:01:47.5]} 26...
Qxf6 {[%clk 0:00:29.5]} 27. Rxf6 {[%clk 0:01:48.4]} 1-0

[Event "Early-Titled-Tuesday-Blitz-September-05-2023"]
[Site "Chess.com"]
[Date "2023.09.05"]
[Round "4"]
[White "Rikikits"]
[Black "slidingknight2775"]
[Result "1-0"]
[WhiteElo "2851"]
[BlackElo "2578"]
[TimeControl "180+1"]
[EndTime "8:35:25 PDT"]
[Termination "Rikikits won by resignation"]

1. b3 {[%clk 0:02:52.1]} 1... d5 {[%clk 0:02:53.6]} 2. Bb2 {[%clk 0:02:53]} 2...
c5 {[%clk 0:02:54.1]} 3. e3 {[%clk 0:02:53.2]} 3... Nf6 {[%clk 0:02:53.2]} 4. f4
{[%clk 0:02:53.4]} 4... a6 {[%clk 0:02:43.5]} 5. Nf3 {[%clk 0:02:50.7]} 5... Nc6
{[%clk 0:02:43.7]} 6. g3 {[%clk 0:02:45.7]} 6... g6 {[%clk 0:02:32.6]} 7. Bg2
{[%clk 0:02:33.6]} 7... Bg7 {[%clk 0:02:31.5]} 8. O-O {[%clk 0:02:28]} 8... O-O
{[%clk 0:02:31.2]} 9. Ne5 {[%clk 0:02:17.6]} 9... Qc7 {[%clk 0:02:24.2]} 10.
Nxc6 {[%clk 0:02:16]} 10... bxc6 {[%clk 0:02:22.1]} 11. Be5 {[%clk 0:02:15.9]}
11... Qd8 {[%clk 0:02:14]} 12. c4 {[%clk 0:02:11.6]} 12... Bf5 {[%clk
0:02:10.9]} 13. Nc3 {[%clk 0:02:07.4]} 13... e6 {[%clk 0:02:10.2]} 14. d3 {[%clk
0:02:02.2]} 14... h5 {[%clk 0:01:54.1]} 15. h3 {[%clk 0:01:58.9]} 15... Qa5
{[%clk 0:00:33.2]} 16. e4 {[%clk 0:01:35.2]} 16... dxe4 {[%clk 0:00:23.3]} 17.
dxe4 {[%clk 0:01:36.1]} 17... Rfd8 {[%clk 0:00:17.9]} 18. Qe1 {[%clk 0:01:35.5]}
1-0

[Event "Early-Titled-Tuesday-Blitz-September-05-2023"]
[Site "Chess.com"]
[Date "2023.09.05"]
[Round "4"]
[White "koncheto"]
[Black "Zheenbekov86"]
[Result "1-0"]
[WhiteElo "2528"]
[BlackElo "2394"]
[TimeControl "180+1"]
[EndTime "8:35:39 PDT"]
[Termination "koncheto won by checkmate"]

1. e4 {[%clk 0:02:59.2]} 1... e5 {[%clk 0:02:58.9]} 2. Nf3 {[%clk 0:02:58.8]}
2... Nc6 {[%clk 0:02:58.7]} 3. d4 {[%clk 0:02:57]} 3... exd4 {[%clk 0:02:58.4]}
4. Bc4 {[%clk 0:02:57.4]} 4... Nf6 {[%clk 0:02:57.9]} 5. O-O {[%clk 0:02:57.6]}
5... Nxe4 {[%clk 0:02:57.4]} 6. Nc3 {[%clk 0:02:57.9]} 6... dxc3 {[%clk
0:02:45.1]} 7. Bxf7+ {[%clk 0:02:57.5]} 7... Kxf7 {[%clk 0:02:44.5]} 8. Qd5+
{[%clk 0:02:57.4]} 8... Ke8 {[%clk 0:02:37.3]} 9. Re1 {[%clk 0:02:58.3]} 9... d6
{[%clk 0:02:16.4]} 10. Rxe4+ {[%clk 0:02:56.4]} 10... Ne7 {[%clk 0:02:12.7]} 11.
Ng5 {[%clk 0:01:39.1]} 11... c6 {[%clk 0:02:12]} 12. Qf7+ {[%clk 0:01:22]} 12...
Kd7 {[%clk 0:02:11]} 13. Ne6 {[%clk 0:00:45.2]} 13... Qe8 {[%clk 0:02:10.2]} 14.
Qxe8+ {[%clk 0:00:45.7]} 14... Kxe8 {[%clk 0:02:10.1]} 15. Nc7+ {[%clk
0:00:46.6]} 15... Kd7 {[%clk 0:02:06.8]} 16. Nxa8 {[%clk 0:00:47.5]} 16... b6
{[%clk 0:02:02.7]} 17. Ra4 {[%clk 0:00:37.9]} 17... Bb7 {[%clk 0:01:51.3]} 18.
Rxa7 {[%clk 0:00:36.5]} 18... Kc8 {[%clk 0:01:44.6]} 19. Nxb6+ {[%clk
0:00:27.3]} 19... Kb8 {[%clk 0:01:44.4]} 20. Ra3 {[%clk 0:00:27.5]} 20... d5
{[%clk 0:01:31.9]} 21. Bf4# {[%clk 0:00:15.6]} 1-0

[Event "Early-Titled-Tuesday-Blitz-September-05-2023"]
[Site "Chess.com"]
[Date "2023.09.05"]
[Round "4"]
[White "cthulhuuu"]
[Black "InadaC"]
[Result "1-0"]
[WhiteElo "2454"]
[BlackElo "1652"]
[TimeControl "180+1"]
[EndTime "8:35:40 PDT"]
[Termination "cthulhuuu won by checkmate"]

1. e4 {[%clk 0:03:00]} 1... e6 {[%clk 0:03:00]} 2. d3 {[%clk 0:03:00.6]} 2... d5
{[%clk 0:03:00.5]} 3. Nd2 {[%clk 0:03:01.4]} 3... Nf6 {[%clk 0:02:59.1]} 4. Ngf3
{[%clk 0:03:01.4]} 4... c5 {[%clk 0:02:58.6]} 5. g3 {[%clk 0:03:01]} 5... Nc6
{[%clk 0:02:58.6]} 6. Bg2 {[%clk 0:03:01]} 6... dxe4 {[%clk 0:02:57.3]} 7. dxe4
{[%clk 0:03:00.8]} 7... Be7 {[%clk 0:02:57.2]} 8. O-O {[%clk 0:03:00.5]} 8...
O-O {[%clk 0:02:57.4]} 9. e5 {[%clk 0:02:58.8]} 9... Nd5 {[%clk 0:02:55.4]} 10.
a3 {[%clk 0:02:58.9]} 10... Qc7 {[%clk 0:02:53.7]} 11. c4 {[%clk 0:02:55.2]}
11... Nb6 {[%clk 0:02:53]} 12. Re1 {[%clk 0:02:55.1]} 12... Rd8 {[%clk
0:02:52.9]} 13. Qc2 {[%clk 0:02:54.5]} 13... Nd4 {[%clk 0:02:51.2]} 14. Nxd4
{[%clk 0:02:54.1]} 14... Rxd4 {[%clk 0:02:51.7]} 15. b3 {[%clk 0:02:51.7]} 15...
Rd8 {[%clk 0:02:50.5]} 16. Ne4 {[%clk 0:02:51.1]} 16... Bd7 {[%clk 0:02:49.8]}
17. Bg5 {[%clk 0:02:46.8]} 17... Bxg5 {[%clk 0:02:48]} 18. Nxg5 {[%clk
0:02:46.9]} 18... g6 {[%clk 0:02:41.7]} 19. Qe4 {[%clk 0:02:39.7]} 19... Bc6
{[%clk 0:02:39.8]} 20. Qh4 {[%clk 0:02:38.9]} 20... h5 {[%clk 0:02:31.8]} 21.
Bxc6 {[%clk 0:02:38]} 21... Qxc6 {[%clk 0:02:30.2]} 22. g4 {[%clk 0:02:36.5]}
22... Rd4 {[%clk 0:02:29.7]} 23. h3 {[%clk 0:02:22.3]} 23... Rad8 {[%clk
0:02:23]} 24. Ne4 {[%clk 0:02:22.2]} 24... Nd7 {[%clk 0:02:16.5]} 25. gxh5
{[%clk 0:02:18.9]} 25... Nxe5 {[%clk 0:02:11.3]} 26. Qf6 {[%clk 0:00:42.8]}
26... Nd3 {[%clk 0:01:43.7]} 27. h6 {[%clk 0:00:34.6]} 27... Kf8 {[%clk
0:01:34.7]} 28. h7 {[%clk 0:00:34.7]} 28... Rxe4 {[%clk 0:01:31.7]} 29. h8=R#
{[%clk 0:00:33.5]} 1-0

[Event "Early-Titled-Tuesday-Blitz-September-05-2023"]
[Site "Chess.com"]
[Date "2023.09.05"]
[Round "4"]
[White "Rud_Makarian"]
[Black "KChor05TTV"]
[Result "1-0"]
[WhiteElo "2940"]
[BlackElo "2608"]
[TimeControl "180+1"]
[EndTime "8:35:45 PDT"]
[Termination "Rud_Makarian won by resignation"]

1. d4 {[%clk 0:02:58.7]} 1... Nf6 {[%clk 0:02:54.6]} 2. c4 {[%clk 0:02:58.4]}
2... g6 {[%clk 0:02:53.1]} 3. Nc3 {[%clk 0:02:59.2]} 3... Bg7 {[%clk 0:02:51]}
4. e4 {[%clk 0:02:59.6]} 4... d6 {[%clk 0:02:50.8]} 5. Be2 {[%clk 0:03:00.4]}
5... O-O {[%clk 0:02:50.3]} 6. Be3 {[%clk 0:03:01.1]} 6... Na6 {[%clk
0:02:49.9]} 7. Nf3 {[%clk 0:03:00.8]} 7... e5 {[%clk 0:02:44.2]} 8. O-O {[%clk
0:03:00.8]} 8... Re8 {[%clk 0:02:33.3]} 9. d5 {[%clk 0:03:00.2]} 9... Nc5 {[%clk
0:02:25.5]} 10. Nd2 {[%clk 0:02:59.7]} 10... a5 {[%clk 0:02:25.5]} 11. f3 {[%clk
0:02:59]} 11... Nh5 {[%clk 0:02:24.7]} 12. Nb3 {[%clk 0:02:52.3]} 12... b6
{[%clk 0:02:19.3]} 13. Nxc5 {[%clk 0:02:50.6]} 13... bxc5 {[%clk 0:02:11]} 14.
Qd2 {[%clk 0:02:51.4]} 14... f5 {[%clk 0:02:09.5]} 15. exf5 {[%clk 0:02:50.3]}
15... gxf5 {[%clk 0:02:08.8]} 16. Bg5 {[%clk 0:02:50.4]} 16... Qd7 {[%clk
0:02:04.7]} 17. g3 {[%clk 0:02:49.3]} 17... Qf7 {[%clk 0:01:58]} 18. Rae1 {[%clk
0:02:47]} 18... Bd7 {[%clk 0:01:55.3]} 19. Kh1 {[%clk 0:02:45.4]} 19... Qg6
{[%clk 0:01:54.5]} 20. f4 {[%clk 0:02:36.2]} 20... e4 {[%clk 0:01:43.5]} 21. Nd1
{[%clk 0:02:31.4]} 21... Bd4 {[%clk 0:01:36.2]} 22. Ne3 {[%clk 0:02:28.6]} 22...
Ng7 {[%clk 0:01:36.1]} 23. Rg1 {[%clk 0:02:25.9]} 23... Bf6 {[%clk 0:01:21.7]}
24. Bxf6 {[%clk 0:02:23.4]} 24... Qxf6 {[%clk 0:01:22]} 25. g4 {[%clk
0:02:23.8]} 25... Qd4 {[%clk 0:01:11.4]} 26. Qc1 {[%clk 0:02:21.3]} 26... Kh8
{[%clk 0:00:58.3]} 27. g5 {[%clk 0:02:08.7]} 27... Rab8 {[%clk 0:00:54.2]} 28.
b3 {[%clk 0:02:04.5]} 28... a4 {[%clk 0:00:33.2]} 29. Bd1 {[%clk 0:02:02.6]}
29... a3 {[%clk 0:00:27.2]} 30. Rg2 {[%clk 0:01:50.1]} 1-0

[Event "Early-Titled-Tuesday-Blitz-September-05-2023"]
[Site "Chess.com"]
[Date "2023.09.05"]
[Round "4"]
[White "IM_Tissir"]
[Black "Hoshka"]
[Result "1-0"]
[WhiteElo "2455"]
[BlackElo "2046"]
[TimeControl "180+1"]
[EndTime "8:35:45 PDT"]
[Termination "IM_Tissir won by resignation"]

1. e4 {[%clk 0:02:56.7]} 1... e5 {[%clk 0:02:59.5]} 2. Nf3 {[%clk 0:02:56.5]}
2... Nc6 {[%clk 0:02:59.5]} 3. Bc4 {[%clk 0:02:56.8]} 3... Nf6 {[%clk
0:02:59.2]} 4. d3 {[%clk 0:02:57.1]} 4... h6 {[%clk 0:02:58]} 5. c3 {[%clk
0:02:56.3]} 5... d6 {[%clk 0:02:57.8]} 6. Bb3 {[%clk 0:02:56.9]} 6... g5 {[%clk
0:02:56.2]} 7. Nbd2 {[%clk 0:02:57.6]} 7... Bg7 {[%clk 0:02:55.8]} 8. Nc4 {[%clk
0:02:56]} 8... O-O {[%clk 0:02:53.5]} 9. Ne3 {[%clk 0:02:55.4]} 9... Ne7 {[%clk
0:02:51.6]} 10. O-O {[%clk 0:02:48]} 10... Ng6 {[%clk 0:02:50.9]} 11. Nf5 {[%clk
0:02:41.9]} 11... Bxf5 {[%clk 0:02:47]} 12. exf5 {[%clk 0:02:42.8]} 12... Ne7
{[%clk 0:02:41.9]} 13. Bc2 {[%clk 0:02:41.8]} 13... Nxf5 {[%clk 0:02:37.1]} 14.
d4 {[%clk 0:02:41.3]} 14... e4 {[%clk 0:02:37]} 15. Re1 {[%clk 0:02:29.9]} 15...
exf3 {[%clk 0:02:12.2]} 16. Bxf5 {[%clk 0:02:28.7]} 16... fxg2 {[%clk
0:02:07.5]} 17. Qf3 {[%clk 0:02:27.7]} 17... c5 {[%clk 0:01:47]} 18. Be3 {[%clk
0:02:25.3]} 18... Qa5 {[%clk 0:01:29.1]} 19. a3 {[%clk 0:02:19.9]} 19... cxd4
{[%clk 0:01:28.5]} 20. Bxd4 {[%clk 0:02:19.8]} 20... Qd5 {[%clk 0:01:28.2]} 21.
Qd3 {[%clk 0:02:12.6]} 21... Rfe8 {[%clk 0:01:17.8]} 22. Rad1 {[%clk 0:01:53.6]}
22... Rxe1+ {[%clk 0:01:06.1]} 23. Rxe1 {[%clk 0:01:53.5]} 23... b5 {[%clk
0:00:33.8]} 24. Re7 {[%clk 0:01:50.6]} 24... a6 {[%clk 0:00:26]} 25. h3 {[%clk
0:01:46.6]} 25... Rc8 {[%clk 0:00:19.2]} 26. Bxc8 {[%clk 0:01:43]} 1-0

[Event "Early-Titled-Tuesday-Blitz-September-05-2023"]
[Site "Chess.com"]
[Date "2023.09.05"]
[Round "4"]
[White "isaak2009"]
[Black "MAGMAchess02"]
[Result "1-0"]
[WhiteElo "2555"]
[BlackElo "2404"]
[TimeControl "180+1"]
[EndTime "8:35:47 PDT"]
[Termination "isaak2009 won by resignation"]

1. d4 {[%clk 0:02:57.6]} 1... Nf6 {[%clk 0:02:54.5]} 2. c4 {[%clk 0:02:57.9]}
2... c5 {[%clk 0:02:47.9]} 3. d5 {[%clk 0:02:58]} 3... b5 {[%clk 0:02:41]} 4.
cxb5 {[%clk 0:02:58.9]} 4... a6 {[%clk 0:02:40.7]} 5. e3 {[%clk 0:02:59.1]} 5...
g6 {[%clk 0:02:39.9]} 6. Nc3 {[%clk 0:02:59.3]} 6... Bg7 {[%clk 0:02:39.4]} 7.
a4 {[%clk 0:02:59.9]} 7... O-O {[%clk 0:02:39.2]} 8. Nf3 {[%clk 0:03:00.5]} 8...
e6 {[%clk 0:02:38.4]} 9. d6 {[%clk 0:02:57.5]} 9... Bb7 {[%clk 0:02:25.6]} 10.
Be2 {[%clk 0:02:53.4]} 10... Nd5 {[%clk 0:02:24.5]} 11. Bd2 {[%clk 0:02:45.6]}
11... axb5 {[%clk 0:02:04.3]} 12. Bxb5 {[%clk 0:02:41.8]} 12... Nc6 {[%clk
0:02:00.9]} 13. O-O {[%clk 0:02:39.3]} 13... Ncb4 {[%clk 0:01:54.4]} 14. Ne4
{[%clk 0:02:33.5]} 14... Rc8 {[%clk 0:01:44.9]} 15. Nc3 {[%clk 0:02:28.7]} 15...
Bc6 {[%clk 0:01:32.2]} 16. e4 {[%clk 0:02:27.1]} 16... Nb6 {[%clk 0:01:11.7]}
17. Bxc6 {[%clk 0:02:25.7]} 17... Rxc6 {[%clk 0:01:10.7]} 18. e5 {[%clk
0:02:26.1]} 18... f6 {[%clk 0:01:06.4]} 19. exf6 {[%clk 0:02:22.5]} 19... Qxf6
{[%clk 0:00:56.5]} 20. Qe2 {[%clk 0:02:13.2]} 20... Rxd6 {[%clk 0:00:48.9]} 21.
Ne4 {[%clk 0:02:11.8]} 21... Qe7 {[%clk 0:00:30.6]} 22. Bg5 {[%clk 0:02:10.3]}
22... Bf6 {[%clk 0:00:30.7]} 23. Nxf6+ {[%clk 0:02:00.7]} 23... Rxf6 {[%clk
0:00:30.1]} 24. Qe5 {[%clk 0:02:01.4]} 24... N6d5 {[%clk 0:00:30.5]} 25. Bxf6
{[%clk 0:01:55.2]} 25... Nxf6 {[%clk 0:00:27.1]} 26. Qxc5 {[%clk 0:01:53.8]}
26... Nd3 {[%clk 0:00:24.7]} 27. Qc8+ {[%clk 0:01:53]} 27... Kg7 {[%clk
0:00:24.2]} 28. Qc3 {[%clk 0:01:53.6]} 28... Rd5 {[%clk 0:00:20.4]} 29. Nd2
{[%clk 0:01:51.5]} 29... Kg8 {[%clk 0:00:12.6]} 30. a5 {[%clk 0:01:52]} 30...
Qd6 {[%clk 0:00:12.6]} 31. a6 {[%clk 0:01:50.2]} 31... Rc5 {[%clk 0:00:13]} 32.
a7 {[%clk 0:01:47.6]} 1-0